[Event "*** Titled Tuesday Blitz"]
[Site "Chess.com"]
[Date "2021.04.27"]
[Round "4"]
[White "TeukkaSalama"]
[Black "shreyansshah123"]
[Result "1-0"]
[WhiteElo "2363"]
[BlackElo "1694"]
[TimeControl "180+1"]
[EndTime "10:34:58 PDT"]
[Termination "TeukkaSalama won by resignation"]

1. d4 {[%clk 0:03:00.9]} 1... Nf6 {[%clk 0:02:59.4]} 2. Bf4 {[%clk 0:02:59.9]}
2... g6 {[%clk 0:02:58.9]} 3. e3 {[%clk 0:02:59.7]} 3... Bg7 {[%clk 0:02:59.4]}
4. Nf3 {[%clk 0:02:59.8]} 4... d6 {[%clk 0:03:00.2]} 5. h3 {[%clk 0:02:59.9]}
5... Nbd7 {[%clk 0:03:00.8]} 6. Be2 {[%clk 0:03:00.2]} 6... O-O {[%clk
0:03:01.2]} 7. O-O {[%clk 0:03:00.2]} 7... e5 {[%clk 0:03:00.4]} 8. dxe5 {[%clk
0:02:59.1]} 8... dxe5 {[%clk 0:03:01.3]} 9. Nxe5 {[%clk 0:02:58.5]} 9... Nxe5
{[%clk 0:03:02.1]} 10. Bxe5 {[%clk 0:02:57.3]} 10... Be6 {[%clk 0:03:02.7]} 11.
c3 {[%clk 0:02:54.4]} 11... c6 {[%clk 0:03:02]} 12. Nd2 {[%clk 0:02:32.8]} 12...
Ne8 {[%clk 0:02:53.8]} 13. Bxg7 {[%clk 0:02:32.1]} 13... Nxg7 {[%clk 0:02:54.7]}
14. Qc2 {[%clk 0:02:31.7]} 14... Bf5 {[%clk 0:02:53.8]} 15. e4 {[%clk
0:02:31.4]} 15... Be6 {[%clk 0:02:53.8]} 16. Rad1 {[%clk 0:02:29.4]} 16... Qb6
{[%clk 0:02:53.2]} 17. Bc4 {[%clk 0:02:28.4]} 17... Rfd8 {[%clk 0:02:51.6]} 18.
Bxe6 {[%clk 0:02:26.5]} 18... Nxe6 {[%clk 0:02:52.5]} 19. Nc4 {[%clk 0:02:24.7]}
19... Qc5 {[%clk 0:02:50.4]} 20. Ne3 {[%clk 0:02:16.7]} 20... Qa5 {[%clk
0:02:44.2]} 21. b3 {[%clk 0:02:12.2]} 21... Qb6 {[%clk 0:02:43.4]} 22. Rxd8+
{[%clk 0:02:09]} 22... Rxd8 {[%clk 0:02:41.8]} 23. Rd1 {[%clk 0:02:09.5]} 23...
Rxd1+ {[%clk 0:02:42.1]} 24. Qxd1 {[%clk 0:02:10]} 24... Qd8 {[%clk 0:02:41.1]}
25. Qxd8+ {[%clk 0:02:09.2]} 25... Nxd8 {[%clk 0:02:42]} 26. Kf1 {[%clk
0:02:09]} 26... Kf8 {[%clk 0:02:42.9]} 27. Ke2 {[%clk 0:02:09.1]} 27... Ke7
{[%clk 0:02:43.8]} 28. Kd3 {[%clk 0:02:09.4]} 28... Ke6 {[%clk 0:02:44.4]} 29.
Kd4 {[%clk 0:02:08.3]} 29... b5 {[%clk 0:02:44.4]} 30. c4 {[%clk 0:01:59.8]}
30... a6 {[%clk 0:02:43]} 31. Kc5 {[%clk 0:01:55]} 31... Kd7 {[%clk 0:02:42.2]}
32. Kb6 {[%clk 0:01:54.8]} 32... bxc4 {[%clk 0:02:39.6]} 33. Nxc4 {[%clk
0:01:54.5]} 33... f5 {[%clk 0:02:38.6]} 34. e5 {[%clk 0:01:53.5]} 1-0

[Event "*** Titled Tuesday Blitz"]
[Site "Chess.com"]
[Date "2021.04.27"]
[Round "4"]
[White "Michaelson_11"]
[Black "Apocalyps999"]
[Result "0-1"]
[WhiteElo "2244"]
[BlackElo "2447"]
[TimeControl "180+1"]
[EndTime "10:35:08 PDT"]
[Termination "Apocalyps999 won by resignation"]

1. e4 {[%clk 0:03:00.9]} 1... c5 {[%clk 0:02:51]} 2. Nf3 {[%clk 0:02:57.7]} 2...
e6 {[%clk 0:02:47.8]} 3. d4 {[%clk 0:02:58.2]} 3... cxd4 {[%clk 0:02:48.7]} 4.
Nxd4 {[%clk 0:02:59.1]} 4... Nf6 {[%clk 0:02:48.7]} 5. Nc3 {[%clk 0:02:58.6]}
5... Nc6 {[%clk 0:02:48.7]} 6. Ndb5 {[%clk 0:02:47.6]} 6... Bc5 {[%clk
0:02:46.5]} 7. Bf4 {[%clk 0:02:37.6]} 7... O-O {[%clk 0:02:44.3]} 8. Bc7 {[%clk
0:02:37.5]} 8... Qe7 {[%clk 0:02:43]} 9. Bd6 {[%clk 0:02:37]} 9... Bxd6 {[%clk
0:02:42.6]} 10. Qxd6 {[%clk 0:02:37.9]} 10... Qd8 {[%clk 0:02:43]} 11. Nc7
{[%clk 0:02:22]} 11... Rb8 {[%clk 0:02:39]} 12. e5 {[%clk 0:02:19.5]} 12... Ng4
{[%clk 0:02:35.9]} 13. f4 {[%clk 0:01:57.1]} 13... Ne3 {[%clk 0:02:33.8]} 14.
Kd2 {[%clk 0:01:24.4]} 14... Nf5 {[%clk 0:02:31.7]} 0-1

[Event "*** Titled Tuesday Blitz"]
[Site "Chess.com"]
[Date "2021.04.27"]
[Round "4"]
[White "LenkaPtacnikova"]
[Black "scandalgod"]
[Result "0-1"]
[WhiteElo "2189"]
[BlackElo "2591"]
[TimeControl "180+1"]
[EndTime "10:35:14 PDT"]
[Termination "scandalgod won by resignation"]

1. c4 {[%clk 0:03:00.2]} 1... e5 {[%clk 0:02:37.1]} 2. g3 {[%clk 0:03:00.3]}
2... Nc6 {[%clk 0:02:36.6]} 3. Bg2 {[%clk 0:03:00.8]} 3... Bc5 {[%clk
0:02:36.7]} 4. Nc3 {[%clk 0:02:47.6]} 4... a6 {[%clk 0:02:35.5]} 5. e3 {[%clk
0:02:45.7]} 5... d6 {[%clk 0:02:33.8]} 6. Nge2 {[%clk 0:02:46]} 6... Ba7 {[%clk
0:02:28]} 7. O-O {[%clk 0:02:43.6]} 7... h5 {[%clk 0:02:18.4]} 8. d4 {[%clk
0:02:37.3]} 8... h4 {[%clk 0:02:14.2]} 9. Bxc6+ {[%clk 0:02:31.2]} 9... bxc6
{[%clk 0:02:12.5]} 10. dxe5 {[%clk 0:02:31.3]} 10... hxg3 {[%clk 0:01:57.4]} 11.
fxg3 {[%clk 0:02:28.1]} 11... Bh3 {[%clk 0:01:50.4]} 12. Rf2 {[%clk 0:02:19.2]}
12... dxe5 {[%clk 0:01:50.1]} 13. Qc2 {[%clk 0:02:11.7]} 13... Nf6 {[%clk
0:01:44.7]} 14. b4 {[%clk 0:02:08.5]} 14... Ng4 {[%clk 0:01:41.7]} 15. c5 {[%clk
0:02:08.5]} 15... Nxf2 {[%clk 0:01:33.4]} 16. Kxf2 {[%clk 0:02:08.4]} 16... Qf6+
{[%clk 0:01:30.6]} 0-1

[Event "*** Titled Tuesday Blitz"]
[Site "Chess.com"]
[Date "2021.04.27"]
[Round "4"]
[White "KIEV-1"]
[Black "InitiatingASC"]
[Result "1-0"]
[WhiteElo "2226"]
[BlackElo "2406"]
[TimeControl "180+1"]
[EndTime "10:35:46 PDT"]
[Termination "KIEV-1 won by resignation"]

1. e4 {[%clk 0:03:00.9]} 1... c5 {[%clk 0:02:59.7]} 2. Nf3 {[%clk 0:03:00.7]}
2... Nc6 {[%clk 0:03:00]} 3. d4 {[%clk 0:03:01.1]} 3... cxd4 {[%clk 0:03:00.9]}
4. Nxd4 {[%clk 0:03:01.6]} 4... Nf6 {[%clk 0:03:01.4]} 5. Nxc6 {[%clk
0:03:01.2]} 5... bxc6 {[%clk 0:03:00.7]} 6. Bd3 {[%clk 0:03:01.5]} 6... e5
{[%clk 0:03:00.9]} 7. c4 {[%clk 0:03:01.5]} 7... d6 {[%clk 0:03:00.8]} 8. O-O
{[%clk 0:03:01.3]} 8... Be7 {[%clk 0:02:59.7]} 9. h3 {[%clk 0:03:01.3]} 9... O-O
{[%clk 0:02:59.7]} 10. Nc3 {[%clk 0:03:01.8]} 10... Be6 {[%clk 0:02:59.2]} 11.
Be3 {[%clk 0:03:01.8]} 11... Nd7 {[%clk 0:02:59.1]} 12. b4 {[%clk 0:02:59.4]}
12... Nb6 {[%clk 0:02:53.6]} 13. Qe2 {[%clk 0:02:57.9]} 13... d5 {[%clk
0:02:47.8]} 14. exd5 {[%clk 0:02:51.3]} 14... cxd5 {[%clk 0:02:47.4]} 15. Bxb6
{[%clk 0:02:50]} 15... axb6 {[%clk 0:02:45.3]} 16. cxd5 {[%clk 0:02:48.5]} 16...
Bxd5 {[%clk 0:02:36.2]} 17. Nxd5 {[%clk 0:02:06]} 17... Qxd5 {[%clk 0:02:34.7]}
18. Be4 {[%clk 0:02:06.2]} 18... Qd4 {[%clk 0:02:26.7]} 19. Bxa8 {[%clk
0:02:01.8]} 19... Rxa8 {[%clk 0:02:25.9]} 20. a3 {[%clk 0:02:00.1]} 20... Bxb4
{[%clk 0:02:06.6]} 21. Rad1 {[%clk 0:01:47.1]} 21... Qc3 {[%clk 0:01:55.1]} 22.
axb4 {[%clk 0:01:45.9]} 22... Qxb4 {[%clk 0:01:54.9]} 23. Qxe5 {[%clk 0:01:44]}
23... h5 {[%clk 0:01:39.4]} 24. Qxh5 {[%clk 0:01:41]} 24... Ra5 {[%clk
0:01:39.3]} 25. Rd8+ {[%clk 0:01:38.1]} 1-0

[Event "*** Titled Tuesday Blitz"]
[Site "Chess.com"]
[Date "2021.04.27"]
[Round "4"]
[White "2346PL"]
[Black "WildBizon"]
[Result "0-1"]
[WhiteElo "2442"]
[BlackElo "2634"]
[TimeControl "180+1"]
[EndTime "10:35:54 PDT"]
[Termination "WildBizon won by resignation"]

1. d4 {[%clk 0:03:00.9]} 1... Nf6 {[%clk 0:02:59.1]} 2. Nc3 {[%clk 0:03:00.2]}
2... e6 {[%clk 0:02:52.9]} 3. Bg5 {[%clk 0:02:52.8]} 3... d5 {[%clk 0:02:51.1]}
4. e3 {[%clk 0:02:49.9]} 4... Nbd7 {[%clk 0:02:48.9]} 5. Nf3 {[%clk 0:02:46.3]}
5... h6 {[%clk 0:02:48.8]} 6. Bh4 {[%clk 0:02:45.8]} 6... c5 {[%clk 0:02:48.6]}
7. Be2 {[%clk 0:02:44.3]} 7... Be7 {[%clk 0:02:48.5]} 8. O-O {[%clk 0:02:44]}
8... O-O {[%clk 0:02:48.6]} 9. h3 {[%clk 0:02:38.2]} 9... b6 {[%clk 0:02:48.6]}
10. Bg3 {[%clk 0:02:35.9]} 10... Bb7 {[%clk 0:02:48.9]} 11. Nb5 {[%clk
0:02:35.1]} 11... Ne4 {[%clk 0:02:45]} 12. Bh2 {[%clk 0:02:34.7]} 12... a6
{[%clk 0:02:44.1]} 13. Nc3 {[%clk 0:02:34.5]} 13... Nxc3 {[%clk 0:02:43.5]} 14.
bxc3 {[%clk 0:02:35.4]} 14... c4 {[%clk 0:02:39.9]} 15. Ne5 {[%clk 0:02:35.4]}
15... Nf6 {[%clk 0:02:37.1]} 16. Bf3 {[%clk 0:02:32.9]} 16... b5 {[%clk
0:02:34.3]} 17. g4 {[%clk 0:02:31.9]} 17... Bd6 {[%clk 0:02:32.7]} 18. Bg2
{[%clk 0:02:30.4]} 18... Ne4 {[%clk 0:02:29.9]} 19. Qe1 {[%clk 0:02:26.6]} 19...
Qa5 {[%clk 0:02:27]} 20. Bxe4 {[%clk 0:02:24.6]} 20... dxe4 {[%clk 0:02:27.9]}
21. Kg2 {[%clk 0:02:12.4]} 21... Qc7 {[%clk 0:02:22.8]} 22. Rh1 {[%clk
0:02:08.4]} 22... Kh7 {[%clk 0:02:16.3]} 23. h4 {[%clk 0:02:07.2]} 23... f6
{[%clk 0:02:16.2]} 24. f4 {[%clk 0:01:50.1]} 24... exf3+ {[%clk 0:02:05.5]} 25.
Nxf3 {[%clk 0:01:49.1]} 25... Bxh2 {[%clk 0:02:05.3]} 26. Rxh2 {[%clk
0:01:39.7]} 26... Bxf3+ {[%clk 0:02:04.8]} 27. Kh3 {[%clk 0:01:40.4]} 27... e5
{[%clk 0:02:00]} 28. Qg3 {[%clk 0:01:37.1]} 28... Be4 {[%clk 0:01:56]} 29. g5
{[%clk 0:01:35.1]} 29... Qd7+ {[%clk 0:01:53.6]} 0-1

[Event "*** Titled Tuesday Blitz"]
[Site "Chess.com"]
[Date "2021.04.27"]
[Round "4"]
[White "JoachimMouhamad"]
[Black "BJthechessgod"]
[Result "1-0"]
[WhiteElo "2456"]
[BlackElo "2280"]
[TimeControl "180+1"]
[EndTime "10:35:59 PDT"]
[Termination "JoachimMouhamad won by resignation"]

1. e4 {[%clk 0:03:00.1]} 1... c5 {[%clk 0:02:59.6]} 2. Nf3 {[%clk 0:02:59.7]}
2... e6 {[%clk 0:02:59.3]} 3. d4 {[%clk 0:02:59.8]} 3... cxd4 {[%clk 0:03:00.2]}
4. Nxd4 {[%clk 0:03:00.5]} 4... Nc6 {[%clk 0:03:00.4]} 5. Nc3 {[%clk 0:03:00]}
5... Qc7 {[%clk 0:02:59.4]} 6. Be3 {[%clk 0:02:57.9]} 6... a6 {[%clk 0:02:57.8]}
7. Qd2 {[%clk 0:02:57.4]} 7... Nf6 {[%clk 0:02:58.1]} 8. O-O-O {[%clk
0:02:48.3]} 8... Be7 {[%clk 0:02:55.9]} 9. f3 {[%clk 0:02:46.4]} 9... b5 {[%clk
0:02:54.8]} 10. Nxc6 {[%clk 0:02:45]} 10... dxc6 {[%clk 0:02:54.9]} 11. g4
{[%clk 0:02:43.4]} 11... e5 {[%clk 0:02:53.3]} 12. h4 {[%clk 0:02:39.5]} 12...
Be6 {[%clk 0:02:50.1]} 13. Qf2 {[%clk 0:02:33.1]} 13... Rd8 {[%clk 0:02:46.9]}
14. Bh3 {[%clk 0:02:25.7]} 14... O-O {[%clk 0:02:29.8]} 15. g5 {[%clk
0:02:09.1]} 15... Nh5 {[%clk 0:02:13.2]} 16. Bxe6 {[%clk 0:01:43.5]} 16... fxe6
{[%clk 0:02:14.1]} 17. Qg2 {[%clk 0:01:40]} 17... c5 {[%clk 0:02:00.6]} 18. Qg4
{[%clk 0:01:36.6]} 18... Rxd1+ {[%clk 0:01:33.8]} 19. Rxd1 {[%clk 0:01:35.3]}
19... Nf4 {[%clk 0:01:33.4]} 20. Bxf4 {[%clk 0:01:32.4]} 20... Rxf4 {[%clk
0:01:34.2]} 21. Qxe6+ {[%clk 0:01:32.5]} 21... Kf8 {[%clk 0:01:34]} 22. Nd5
{[%clk 0:01:27.2]} 1-0

[Event "*** Titled Tuesday Blitz"]
[Site "Chess.com"]
[Date "2021.04.27"]
[Round "4"]
[White "GameOverBro"]
[Black "Vanina1989"]
[Result "0-1"]
[WhiteElo "2511"]
[BlackElo "2810"]
[TimeControl "180+1"]
[EndTime "10:36:23 PDT"]
[Termination "Vanina1989 won by resignation"]

1. e4 {[%clk 0:03:00.9]} 1... c6 {[%clk 0:03:00.2]} 2. Nc3 {[%clk 0:03:00.3]}
2... d5 {[%clk 0:03:00.3]} 3. Nf3 {[%clk 0:03:00.4]} 3... dxe4 {[%clk
0:03:00.7]} 4. Nxe4 {[%clk 0:03:00.9]} 4... Nf6 {[%clk 0:03:01.4]} 5. Qe2 {[%clk
0:03:00.7]} 5... Nxe4 {[%clk 0:03:01.3]} 6. Qxe4 {[%clk 0:03:00.8]} 6... Nd7
{[%clk 0:03:02]} 7. Bc4 {[%clk 0:02:59.5]} 7... Nf6 {[%clk 0:03:01.2]} 8. Ne5
{[%clk 0:02:59.6]} 8... e6 {[%clk 0:02:59]} 9. Qe2 {[%clk 0:02:59.9]} 9... b5
{[%clk 0:02:59]} 10. Bb3 {[%clk 0:02:59.3]} 10... Qc7 {[%clk 0:02:51.6]} 11. d4
{[%clk 0:02:57.7]} 11... Bd6 {[%clk 0:02:47.8]} 12. O-O {[%clk 0:02:57]} 12...
O-O {[%clk 0:02:47.6]} 13. Re1 {[%clk 0:02:57.1]} 13... Bb7 {[%clk 0:02:45.4]}
14. Bg5 {[%clk 0:02:54.4]} 14... Nd5 {[%clk 0:02:45]} 15. Bh4 {[%clk 0:02:51.3]}
15... c5 {[%clk 0:02:44.8]} 16. dxc5 {[%clk 0:02:50.1]} 16... Qxc5 {[%clk
0:02:41.5]} 17. Bg3 {[%clk 0:02:46.6]} 17... Rad8 {[%clk 0:02:37.6]} 18. Rad1
{[%clk 0:02:44.4]} 18... a5 {[%clk 0:02:22]} 19. a4 {[%clk 0:02:37.8]} 19...
bxa4 {[%clk 0:02:20.5]} 20. Bxa4 {[%clk 0:02:36.5]} 20... Qb4 {[%clk 0:02:20.8]}
21. Bb3 {[%clk 0:02:12.9]} 21... Nf4 {[%clk 0:02:14.6]} 22. Bxf4 {[%clk
0:01:31.4]} 22... Qxf4 {[%clk 0:02:13]} 23. g3 {[%clk 0:00:48.7]} 23... Qxe5
{[%clk 0:02:10.4]} 0-1

[Event "*** Titled Tuesday Blitz"]
[Site "Chess.com"]
[Date "2021.04.27"]
[Round "4"]
[White "chessmadara"]
[Black "GoValya"]
[Result "1/2-1/2"]
[WhiteElo "2144"]
[BlackElo "2276"]
[TimeControl "180+1"]
[EndTime "10:36:23 PDT"]
[Termination "Game drawn by agreement"]

1. c4 {[%clk 0:03:00.9]} 1... g6 {[%clk 0:02:58.9]} 2. g3 {[%clk 0:02:59.6]}
2... Bg7 {[%clk 0:02:59.3]} 3. Bg2 {[%clk 0:03:00.2]} 3... c5 {[%clk 0:02:59.7]}
4. Nf3 {[%clk 0:02:59.3]} 4... Nc6 {[%clk 0:03:00]} 5. O-O {[%clk 0:02:58.3]}
5... Nf6 {[%clk 0:03:00.4]} 6. d4 {[%clk 0:02:56.5]} 6... cxd4 {[%clk
0:02:59.2]} 7. Nxd4 {[%clk 0:02:57.4]} 7... O-O {[%clk 0:02:59.2]} 8. Nc3 {[%clk
0:02:53.6]} 8... a6 {[%clk 0:02:55]} 9. Be3 {[%clk 0:02:04.5]} 9... Ng4 {[%clk
0:02:44.2]} 10. Nxc6 {[%clk 0:01:55.3]} 10... Nxe3 {[%clk 0:02:19.3]} 11. Nxd8
{[%clk 0:01:53.5]} 11... Nxd1 {[%clk 0:02:19.6]} 12. Rfxd1 {[%clk 0:01:49]}
12... Rxd8 {[%clk 0:02:18.9]} 13. Nd5 {[%clk 0:01:49]} 13... e6 {[%clk
0:02:11.6]} 14. Nb6 {[%clk 0:01:46.9]} 14... Rb8 {[%clk 0:02:11.3]} 15. Nxc8
{[%clk 0:01:44.9]} 15... Rdxc8 {[%clk 0:01:58.4]} 16. Rxd7 {[%clk 0:01:41.7]}
16... Bxb2 {[%clk 0:01:53.5]} 17. Rb1 {[%clk 0:01:40]} 17... Bf6 {[%clk
0:01:39.6]} 18. Rbxb7 {[%clk 0:01:37.5]} 18... Rxb7 {[%clk 0:01:37.7]} 19. Bxb7
{[%clk 0:01:37.2]} 19... Rxc4 {[%clk 0:01:37.4]} 20. Bxa6 {[%clk 0:01:35.5]}
20... Ra4 {[%clk 0:01:35.6]} 21. Bd3 {[%clk 0:01:22.8]} 21... Rxa2 {[%clk
0:01:35]} 22. h4 {[%clk 0:01:22.5]} 22... h5 {[%clk 0:01:33.5]} 23. Kg2 {[%clk
0:01:18.3]} 1/2-1/2

[Event "*** Titled Tuesday Blitz"]
[Site "Chess.com"]
[Date "2021.04.27"]
[Round "4"]
[White "kakarot_001"]
[Black "riospm"]
[Result "1-0"]
[WhiteElo "2716"]
[BlackElo "2522"]
[TimeControl "180+1"]
[EndTime "10:36:39 PDT"]
[Termination "kakarot_001 won by resignation"]

1. e4 {[%clk 0:03:00.9]} 1... c5 {[%clk 0:02:59.3]} 2. Nf3 {[%clk 0:02:57.9]}
2... d6 {[%clk 0:02:59.3]} 3. Bb5+ {[%clk 0:02:55.1]} 3... Nd7 {[%clk 0:02:58]}
4. d4 {[%clk 0:02:54.6]} 4... cxd4 {[%clk 0:02:56.7]} 5. Qxd4 {[%clk 0:02:55.5]}
5... e5 {[%clk 0:02:56.4]} 6. Qd3 {[%clk 0:02:55.4]} 6... h6 {[%clk 0:02:56.5]}
7. O-O {[%clk 0:02:52.8]} 7... Nf6 {[%clk 0:02:57]} 8. c4 {[%clk 0:02:51.3]}
8... Be7 {[%clk 0:02:57.2]} 9. Nc3 {[%clk 0:02:50.5]} 9... O-O {[%clk
0:02:57.5]} 10. Bxd7 {[%clk 0:02:50.6]} 10... Bxd7 {[%clk 0:02:57.3]} 11. b3
{[%clk 0:02:50.5]} 11... Qc7 {[%clk 0:02:48.2]} 12. Ba3 {[%clk 0:02:49.3]} 12...
Qa5 {[%clk 0:02:34.7]} 13. Bb2 {[%clk 0:02:25.4]} 13... Be6 {[%clk 0:02:30.3]}
14. Rfd1 {[%clk 0:02:23.6]} 14... a6 {[%clk 0:02:28.2]} 15. a4 {[%clk
0:02:19.9]} 15... Rac8 {[%clk 0:02:26.1]} 16. Ba3 {[%clk 0:02:17.5]} 16... Rfd8
{[%clk 0:02:22.8]} 17. h3 {[%clk 0:02:08.3]} 17... Bf8 {[%clk 0:02:20.1]} 18.
Qe3 {[%clk 0:02:04.6]} 18... Qc7 {[%clk 0:01:34.2]} 19. Rac1 {[%clk 0:02:00.5]}
19... Qb8 {[%clk 0:01:31.7]} 20. Bb4 {[%clk 0:01:52.5]} 20... d5 {[%clk
0:01:08.5]} 21. exd5 {[%clk 0:01:45.2]} 21... Bxb4 {[%clk 0:01:05.5]} 22. dxe6
{[%clk 0:01:45.2]} 22... fxe6 {[%clk 0:01:02.5]} 23. Nxe5 {[%clk 0:01:44.1]}
23... Bc5 {[%clk 0:01:00.3]} 24. Rxd8+ {[%clk 0:01:32.6]} 1-0

[Event "*** Titled Tuesday Blitz"]
[Site "Chess.com"]
[Date "2021.04.27"]
[Round "4"]
[White "gisela_roque"]
[Black "grandcoach"]
[Result "0-1"]
[WhiteElo "1878"]
[BlackElo "2243"]
[TimeControl "180+1"]
[EndTime "10:36:41 PDT"]
[Termination "grandcoach won by resignation"]

1. c4 {[%clk 0:03:00.9]} 1... Nf6 {[%clk 0:02:58.8]} 2. Nf3 {[%clk 0:02:59.2]}
2... e6 {[%clk 0:02:58.5]} 3. g3 {[%clk 0:02:56.3]} 3... d5 {[%clk 0:02:58.6]}
4. b3 {[%clk 0:02:56.6]} 4... Be7 {[%clk 0:02:54.8]} 5. Bg2 {[%clk 0:02:56.3]}
5... c5 {[%clk 0:02:53.6]} 6. O-O {[%clk 0:02:55.3]} 6... Nc6 {[%clk 0:02:52.4]}
7. d3 {[%clk 0:02:55.2]} 7... O-O {[%clk 0:02:46.1]} 8. e3 {[%clk 0:02:47.7]}
8... b6 {[%clk 0:02:42.5]} 9. Bb2 {[%clk 0:02:45.7]} 9... Bb7 {[%clk 0:02:42]}
10. Nbd2 {[%clk 0:02:42.7]} 10... Qd7 {[%clk 0:02:38.1]} 11. Rc1 {[%clk
0:02:36.9]} 11... Rfd8 {[%clk 0:02:37.5]} 12. Qe2 {[%clk 0:02:34]} 12... dxc4
{[%clk 0:02:25]} 13. dxc4 {[%clk 0:02:30]} 13... Nb4 {[%clk 0:02:25.6]} 14. Rcd1
{[%clk 0:02:00.7]} 14... Qd3 {[%clk 0:02:16.8]} 15. Qxd3 {[%clk 0:01:56.6]}
15... Nxd3 {[%clk 0:02:08.1]} 16. Bc3 {[%clk 0:01:53]} 16... Rd7 {[%clk
0:01:56.1]} 17. Nb1 {[%clk 0:01:34.8]} 17... Rad8 {[%clk 0:01:55.7]} 18. Na3
{[%clk 0:01:25.9]} 18... Ne4 {[%clk 0:01:54.5]} 19. Ba1 {[%clk 0:01:22.6]} 19...
Ndxf2 {[%clk 0:01:44.3]} 20. Rxd7 {[%clk 0:01:21.4]} 20... Rxd7 {[%clk
0:01:42.5]} 21. Rxf2 {[%clk 0:01:20.3]} 21... Nxf2 {[%clk 0:01:40.1]} 22. Kxf2
{[%clk 0:01:20.5]} 22... Rd1 {[%clk 0:01:40]} 23. Bc3 {[%clk 0:01:13.1]} 23...
Bf6 {[%clk 0:01:31.2]} 24. Bxf6 {[%clk 0:01:12.5]} 24... gxf6 {[%clk 0:01:32.1]}
25. Nb5 {[%clk 0:01:11.4]} 25... a6 {[%clk 0:01:26]} 26. Nc3 {[%clk 0:01:11.3]}
26... Rc1 {[%clk 0:01:26.1]} 27. Ne4 {[%clk 0:01:11]} 27... Bxe4 {[%clk
0:01:25.3]} 0-1

[Event "*** Titled Tuesday Blitz"]
[Site "Chess.com"]
[Date "2021.04.27"]
[Round "4"]
[White "NicoChasin"]
[Black "Nafania1"]
[Result "0-1"]
[WhiteElo "2647"]
[BlackElo "2520"]
[TimeControl "180+1"]
[EndTime "10:36:42 PDT"]
[Termination "Nafania1 won by resignation"]

1. d4 {[%clk 0:03:00.9]} 1... Nf6 {[%clk 0:02:59.5]} 2. c4 {[%clk 0:02:43.7]}
2... e6 {[%clk 0:02:59.3]} 3. Nf3 {[%clk 0:02:37.8]} 3... Bb4+ {[%clk
0:02:57.5]} 4. Nbd2 {[%clk 0:02:28.8]} 4... O-O {[%clk 0:02:56]} 5. g3 {[%clk
0:02:26.2]} 5... d5 {[%clk 0:02:54]} 6. a3 {[%clk 0:02:24.5]} 6... Be7 {[%clk
0:02:52.8]} 7. Bg2 {[%clk 0:02:24.2]} 7... b6 {[%clk 0:02:53.2]} 8. O-O {[%clk
0:02:22.5]} 8... Bb7 {[%clk 0:02:53.7]} 9. b3 {[%clk 0:02:23]} 9... Nbd7 {[%clk
0:02:52.2]} 10. Bb2 {[%clk 0:02:23.6]} 10... c5 {[%clk 0:02:47.7]} 11. dxc5
{[%clk 0:02:10.6]} 11... Nxc5 {[%clk 0:02:45.4]} 12. Ne5 {[%clk 0:02:10]} 12...
Rc8 {[%clk 0:02:36.8]} 13. b4 {[%clk 0:02:06.5]} 13... Nce4 {[%clk 0:02:36.3]}
14. Nxe4 {[%clk 0:02:06.2]} 14... Nxe4 {[%clk 0:02:33.6]} 15. cxd5 {[%clk
0:02:06.4]} 15... Bxd5 {[%clk 0:02:32.5]} 16. Rc1 {[%clk 0:02:04.9]} 16... Rxc1
{[%clk 0:01:55.7]} 17. Qxc1 {[%clk 0:02:03.7]} 17... Bf6 {[%clk 0:01:53.5]} 18.
Rd1 {[%clk 0:01:55.3]} 18... Qc8 {[%clk 0:01:42]} 19. Qxc8 {[%clk 0:01:35.6]}
19... Rxc8 {[%clk 0:01:41.3]} 20. f3 {[%clk 0:01:35.3]} 20... Nc3 {[%clk
0:01:31.9]} 21. Bxc3 {[%clk 0:01:33.3]} 21... Rxc3 {[%clk 0:01:31.4]} 22. Ng4
{[%clk 0:01:32.3]} 22... Rxa3 {[%clk 0:01:20]} 23. e4 {[%clk 0:01:30.1]} 23...
Bc6 {[%clk 0:01:14.7]} 24. Rc1 {[%clk 0:01:28.7]} 24... Bd4+ {[%clk 0:01:13.9]}
25. Kf1 {[%clk 0:01:23]} 25... Ra1 {[%clk 0:01:13.8]} 26. Rxa1 {[%clk
0:01:23.1]} 26... Bxa1 {[%clk 0:01:14]} 27. Ke2 {[%clk 0:01:24]} 27... Bc3
{[%clk 0:01:14.2]} 28. Kd3 {[%clk 0:01:21.8]} 28... Bxb4 {[%clk 0:01:14.4]} 0-1

[Event "*** Titled Tuesday Blitz"]
[Site "Chess.com"]
[Date "2021.04.27"]
[Round "4"]
[White "MarcoRiehle"]
[Black "Ajedrez_con_German"]
[Result "1-0"]
[WhiteElo "2710"]
[BlackElo "2528"]
[TimeControl "180+1"]
[EndTime "10:36:53 PDT"]
[Termination "MarcoRiehle won by resignation"]

1. e4 {[%clk 0:03:00.9]} 1... c5 {[%clk 0:02:58]} 2. a3 {[%clk 0:03:00.7]} 2...
e6 {[%clk 0:02:57.1]} 3. b4 {[%clk 0:03:00.2]} 3... b6 {[%clk 0:02:49.2]} 4. Bb2
{[%clk 0:02:59]} 4... Nf6 {[%clk 0:02:48.6]} 5. e5 {[%clk 0:02:58.4]} 5... Nd5
{[%clk 0:02:48.6]} 6. c4 {[%clk 0:02:55.6]} 6... Nc7 {[%clk 0:02:47]} 7. Nf3
{[%clk 0:02:54]} 7... Be7 {[%clk 0:02:43.3]} 8. Bd3 {[%clk 0:02:43.2]} 8... cxb4
{[%clk 0:02:36.2]} 9. Qe2 {[%clk 0:02:38.3]} 9... Nc6 {[%clk 0:02:30.5]} 10. h4
{[%clk 0:02:35.4]} 10... Bb7 {[%clk 0:02:21.7]} 11. Be4 {[%clk 0:02:31.2]} 11...
Na5 {[%clk 0:01:58.4]} 12. axb4 {[%clk 0:02:22.7]} 12... Bxb4 {[%clk 0:01:52.8]}
13. Nc3 {[%clk 0:02:13.4]} 13... d5 {[%clk 0:01:34.8]} 14. exd6 {[%clk
0:02:03.3]} 14... Qxd6 {[%clk 0:01:29.8]} 15. Rxa5 {[%clk 0:02:00.1]} 15... Bxc3
{[%clk 0:01:13.5]} 16. Bxc3 {[%clk 0:01:30.6]} 16... Bxe4 {[%clk 0:01:11.2]} 17.
Qxe4 {[%clk 0:01:30.4]} 17... bxa5 {[%clk 0:01:10.7]} 18. Be5 {[%clk 0:01:30.9]}
18... f5 {[%clk 0:01:02.6]} 19. Qxa8+ {[%clk 0:01:29.7]} 19... Nxa8 {[%clk
0:01:02.4]} 20. Bxd6 {[%clk 0:01:30.3]} 1-0